bitfinex/quotes_ETHUSD_20230109
["timestamp","ask_amount","ask_price","bid_price","bid_amount"]
[1673268718106,1.83918317,1321.0,1320.9,19.03484064]
[1673268718821,1.83918317,1321.0,1320.9,26.60543064]
[1673268720811,0.10818317,1321.0,1320.9,26.60543064]
[1673268721569,0.10818317,1321.0,1320.9,19.03484064]
[1673268721761,0.10818317,1321.0,1320.9,26.60543064]
[1673268722126,0.10818317,1321.0,1320.9,19.03484064]
[1673268726598,2.37587591,1321.0,1320.9,19.03484064]
[1673268727490,0.10818317,1321.0,1320.9,19.03484064]
[1673268727710,0.10818317,1321.0,1320.9,26.60543064]
[1673268727888,0.10818317,1321.0,1320.9,29.2661826]
[1673268728102,0.10818317,1321.0,1320.9,21.6955926]
[1673268729019,2.37587591,1321.0,1320.9,29.2661826]
[1673268730659,5.21039247,1321.0,1320.9,29.2661826]
[1673268730809,2.38187591,1321.0,1320.9,29.2661826]
[1673268731012,2.37587591,1321.0,1320.9,29.2661826]
[1673268732420,2.37587591,1321.0,1320.9,21.6955926]
[1673268732630,2.37587591,1321.0,1320.9,19.03484064]
[1673268732884,5.21039247,1321.0,1320.9,19.03484064]
[1673268733104,2.38187591,1321.0,1320.9,26.60543064]
[1673268733329,2.37587591,1321.0,1320.9,26.60543064]
[1673268733525,2.37787591,1321.0,1320.9,19.03284064]
[1673268733680,2.37587591,1321.0,1320.9,19.03484064]
[1673268734359,2.37587591,1321.0,1320.9,26.60543064]
[1673268734559,2.37587591,1321.0,1320.9,30.0232356]
[1673268734750,2.37587591,1321.0,1320.9,22.4526456]
[1673268735264,2.37587591,1321.0,1320.9,30.0232356]
[1673268737617,2.37587591,1321.0,1320.9,22.4526456]
[1673268737828,2.37587591,1321.0,1320.9,30.0232356]
[1673268741375,2.37587591,1321.0,1320.9,22.4526456]
[1673268741589,5.21039247,1321.0,1320.9,22.4526456]
[1673268741957,5.21639247,1321.0,1320.9,19.03484064]
[1673268742268,2.38187591,1321.0,1320.9,26.60543064]
[1673268742487,2.37587591,1321.0,1320.9,26.60543064]
[1673268743437,2.37587591,1321.0,1320.9,11.46425064]
[1673268743626,2.37587591,1321.0,1320.9,3.89366064]
[1673268743810,2.37587591,1321.0,1320.9,3.79766064]
[1673268744057,2.37587591,1321.0,1320.9,18.93884064]
[1673268744268,2.37587591,1321.0,1320.9,11.46425064]
[1673268744441,5.21039247,1321.0,1320.8,0.001999]
[1673268744652,3.893,1320.9,1320.8,0.001999]
[1673268744876,4.123,1320.9,1320.5,2.00496185]
[1673268745077,2.83797873,1320.6,1320.5,2.00496185]
[1673268745304,16.68069466,1320.6,1320.5,2.00496185]
[1673268745492,17.25499466,1320.6,1320.5,2.00496185]
[1673268745702,15.55218447,1320.6,1320.5,2.00496185]
[1673268745914,12.14661,1320.6,1320.5,2.00496185]
[1673268746148,23.16592,1320.6,1320.5,2.00496185]
[1673268746373,26.57149447,1320.6,1320.5,2.00496185]
[1673268746590,18.99918447,1320.6,1320.5,2.00496185]
[1673268746752,15.59361,1320.6,1320.5,2.00496185]
[1673268747107,18.42641744,1320.6,1320.5,2.00496185]
[1673268747484,25.99872744,1320.6,1320.5,2.00496185]
[1673268748078,24.88692,1320.6,1320.5,2.00496185]
[1673268748272,35.86480447,1320.6,1320.5,2.00496185]
[1673268748455,35.28911009,1320.6,1320.5,2.00496185]
[1673268750491,37.5515238,1320.6,1320.5,2.00496185]
[1673268752390,34.72164371,1320.6,1320.5,2.00496185]
[1673268756999,32.45923,1320.6,1320.5,2.00496185]
[1673268759000,32.45923,1320.6,1320.2,0.18448501]
[1673268759208,1.731,1320.3,1320.2,3.88614565]
[1673268759623,9.30503,1320.3,1320.2,3.88614565]
[1673268759842,9.31103,1320.3,1320.2,3.88614565]
[1673268762626,1.737,1320.3,1320.2,3.88614565]
[1673268762801,9.30503,1320.3,1320.2,3.88614565]
[1673268763006,1.737,1320.3,1320.2,3.88614565]
[1673268763259,1.731,1320.3,1320.2,3.88614565]
[1673268764516,1.731,1320.3,1320.2,11.46074565]
[1673268764732,1.731,1320.3,1320.2,6.95781422]
[1673268764885,1.797,1320.4,1320.2,22.10701422]
[1673268765250,1.715,1320.5,1320.3,26.51920064]
[1673268765411,1.715,1320.5,1320.3,26.61520064]
[1673268765652,1.715,1320.5,1320.3,30.34059606]
[1673268765832,1.715,1320.5,1320.4,3.79766064]
[1673268766077,28.76704,1320.6,1320.4,3.79766064]
[1673268766319,9.29934,1320.6,1320.5,3.79766064]
[1673268767354,7.57834,1320.6,1320.5,3.79766064]
[1673268768150,15.15089,1320.6,1320.5,3.79766064]
[1673268768359,22.72344,1320.6,1320.5,3.79461464]
[1673268768671,22.72344,1320.6,1320.4,0.096]
[1673268768920,23.29174,1320.6,1320.2,8.66308501]
[1673268769136,23.29174,1320.6,1320.3,3.79766064]
[1673268769665,23.29174,1320.6,1320.3,11.37164064]
[1673268769854,23.29174,1320.6,1320.3,11.46764064]
[1673268770151,23.29174,1320.6,1320.3,3.89366064]
[1673268770365,23.29174,1320.6,1320.3,3.79766064]
[1673268771307,23.29174,1320.6,1320.3,11.37168064]
[1673268771559,23.29174,1320.6,1320.3,11.46768064]
[1673268771944,15.71919,1320.6,1320.3,11.46768064]
[1673268772153,0.5743,1320.6,1320.3,26.61574064]
[1673268772363,0.5683,1320.6,1320.3,26.61574064]
[1673268772783,0.5683,1320.6,1320.4,3.79766064]
[1673268772997,15.7134,1320.6,1320.4,3.79766064]
[1673268773205,15.7194,1320.6,1320.4,3.79766064]
[1673268773641,23.29195,1320.6,1320.4,3.79766064]
[1673268774036,15.7194,1320.6,1320.4,3.79766064]
[1673268776455,23.29195,1320.6,1320.4,3.79766064]
[1673268776780,23.29195,1320.6,1320.3,0.096]
[1673268776993,23.29195,1320.6,1320.3,3.79766064]
[1673268777205,23.29195,1320.6,1320.3,11.37168064]
[1673268777206,15.7194,1320.6,1320.3,11.37168064]
[1673268777414,15.7194,1320.6,1320.3,11.46768064]
[1673268777640,23.29195,1320.6,1320.3,3.89366064]
[1673268777851,23.29195,1320.6,1320.3,3.79766064]
[1673268778291,23.29195,1320.6,1320.3,11.37169064]
[1673268778610,15.7194,1320.6,1320.3,11.46769064]
[1673268778824,8.14685,1320.6,1320.3,11.46769064]
[1673268779132,8.14685,1320.6,1320.3,19.04172064]
[1673268780362,10.40682245,1320.6,1320.3,19.04172064]
[1673268780929,17.97937245,1320.6,1320.3,11.46769064]
[1673268781400,17.97937245,1320.6,1320.3,11.46569064]
[1673268781609,17.97937245,1320.6,1320.3,11.46769064]
[1673268781835,17.97937245,1320.6,1320.3,11.46569064]
[1673268782045,17.97937245,1320.6,1320.3,11.46769064]
[1673268782584,2.26241371,1320.5,1320.3,11.46769064]
[1673268782775,6.26241371,1320.5,1320.3,11.46769064]
[1673268783133,4.006,1320.5,1320.3,11.46769064]
[1673268783310,6.26241371,1320.5,1320.3,11.46769064]
[1673268783498,4.006,1320.5,1320.3,11.46769064]
[1673268783708,6.26241371,1320.5,1320.3,11.46769064]
[1673268783985,6.26841371,1320.5,1320.3,11.46769064]
[1673268784386,2.26241371,1320.4,1320.3,11.46769064]
[1673268784600,2.26241371,1320.4,1320.3,3.89366064]
[1673268784833,3.96613596,1320.4,1320.3,3.79766064]
[1673268785120,2.26241371,1320.4,1320.3,3.79766064]
[1673268786998,3.96617738,1320.4,1320.3,3.79766064]
[1673268787342,3.96618509,1320.4,1320.3,3.79766064]
[1673268787927,2.26241371,1320.4,1320.3,3.79766064]
[1673268788899,3.96621805,1320.4,1320.3,3.79766064]
[1673268789289,2.26241371,1320.4,1320.3,11.37169064]
[1673268789519,2.26241371,1320.4,1320.3,3.89366064]
[1673268789863,2.26241371,1320.4,1320.3,3.79766064]
[1673268790450,3.96623698,1320.4,1320.3,11.37169064]
[1673268790669,3.96623698,1320.4,1320.3,19.04172064]
[1673268791172,3.96623698,1320.4,1320.3,26.61575064]
[1673268791810,1.70382327,1320.4,1320.3,19.04172064]
[1673268792033,3.96623698,1320.4,1320.3,19.04172064]
[1673268792429,3.96623698,1320.4,1320.3,11.46769064]
[1673268792905,3.96625771,1320.4,1320.3,11.46769064]
[1673268793265,2.26241371,1320.4,1320.3,11.46769064]
[1673268794367,2.26241371,1320.4,1320.3,19.04172064]
[1673268794368,3.96625875,1320.4,1320.3,19.04172064]
[1673268794541,2.26241371,1320.4,1320.3,11.46769064]
[1673268796210,2.26241371,1320.4,1320.3,26.61575064]
[1673268796436,3.96627657,1320.4,1320.3,26.61575064]
[1673268796664,3.96627657,1320.4,1320.3,19.04172064]
[1673268798073,3.96627657,1320.4,1320.3,26.61575064]
[1673268798959,3.96627657,1320.4,1320.3,19.04172064]
[1673268800846,4.08227657,1320.5,1320.3,37.31714011]
[1673268801105,0.05,1320.5,1320.4,5.52866064]
[1673268801306,0.05,1320.5,1320.4,31.84924064]
[1673268801521,0.05,1320.5,1320.4,31.34504064]
[1673268801706,0.05,1320.5,1320.4,35.82775998]
[1673268803010,0.05,1320.5,1320.4,35.82438904]
[1673268805194,0.023,1320.5,1320.4,35.82438904]
[1673268826655,0.023,1320.5,1320.4,35.8222665]
[1673268828241,0.025,1320.5,1320.4,35.8202665]
[1673268828453,0.023,1320.5,1320.4,35.8222665]
[1673268832397,0.023,1320.5,1320.4,37.70197056]
[1673268833218,0.023,1320.5,1320.4,35.8222665]
[1673268836860,0.023,1320.5,1320.4,37.70203044]
[1673268838383,0.023,1320.5,1320.4,43.38067372]
[1673268838575,2.27841371,1320.7,1320.4,53.44244556]
[1673268838950,3.44808009,1320.8,1320.7,22.71522]
[1673268838951,2.32841371,1320.8,1320.7,22.71522]
[1673268839159,40.76038009,1320.9,1320.7,28.33488064]
[1673268839160,13.3087938,1320.9,1320.7,28.33488064]
[1673268839320,13.2487938,1320.9,1320.8,3.79766064]
[1673268839523,5.6663938,1320.9,1320.8,26.51114064]
[1673268839735,5.6663938,1320.9,1320.8,26.60714064]
[1673268840883,3.40398009,1320.9,1320.8,26.60714064]
[1673268841094,3.39798009,1320.9,1320.8,26.60714064]
[1673268841555,0.5681,1320.9,1320.8,3.89366064]
[1673268841794,3.97367447,1320.9,1320.8,3.79766064]
[1673268843863,3.97367447,1320.9,1320.8,11.36882064]
[1673268844079,3.97367447,1320.9,1320.8,11.46482064]
[1673268845100,3.40557447,1320.9,1320.8,11.46482064]
[1673268845618,3.40557447,1320.9,1320.8,3.89366064]
[1673268845777,3.40557447,1320.9,1320.8,3.79766064]
[1673268847463,10.97616447,1320.9,1320.8,3.79766064]
[1673268847633,10.98216447,1320.9,1320.7,0.096]
[1673268847857,2.83752503,1320.8,1320.7,18.94094064]
[1673268848046,5.10751357,1320.8,1320.7,19.03694064]
[1673268848259,2.84352503,1320.8,1320.7,26.60868064]
[1673268848477,2.83752503,1320.8,1320.7,26.60868064]
[1673268851666,2.83752503,1320.8,1320.7,11.46520064]
[1673268852353,2.83752503,1320.8,1320.7,19.03694064]
[1673268852615,2.83752503,1320.8,1320.7,0.096]
[1673268852830,15.14232,1320.8,1320.5,15.43011]
[1673268852979,9.10801045,1320.7,1320.6,3.79766064]
[1673268853218,9.11401045,1320.7,1320.6,3.79766064]
[1673268853571,5.11401045,1320.7,1320.6,3.79766064]
[1673268855587,5.11401045,1320.7,1320.6,11.36997064]
[1673268855908,5.11401045,1320.7,1320.6,11.46597064]
[1673268857937,5.11401045,1320.7,1320.6,3.89366064]
[1673268858146,5.11401045,1320.7,1320.6,3.79766064]
[1673268858871,5.11401045,1320.7,1320.6,3.79442522]
[1673268861282,2.27622687,1320.7,1320.6,3.79442522]
[1673268861491,2.27022687,1320.7,1320.6,3.79442522]
[1673268861654,2.27022687,1320.7,1320.6,11.36673522]
[1673268861863,2.27022687,1320.7,1320.6,19.03504522]
[1673268862389,2.27022687,1320.7,1320.6,11.46273522]
[1673268867546,5.10801045,1320.7,1320.6,3.89042522]
[1673268867901,5.11401045,1320.7,1320.6,3.79442522]
[1673268868521,5.11401045,1320.7,1320.6,11.36673522]
[1673268868728,2.27622687,1320.7,1320.6,11.46273522]
[1673268868942,2.27022687,1320.7,1320.6,11.46273522]
[1673268869156,5.10801045,1320.7,1320.6,11.46273522]
[1673268869381,5.11401045,1320.7,1320.6,11.46273522]
[1673268870000,5.11401045,1320.7,1320.6,3.89042522]
[1673268870181,5.11401045,1320.7,1320.6,3.79442522]
[1673268870397,5.11401045,1320.7,1320.6,11.36673522]
[1673268870609,5.11401045,1320.7,1320.6,11.46273522]
[1673268871046,5.11401045,1320.7,1320.6,3.89042522]
[1673268871272,5.11401045,1320.7,1320.6,3.79442522]
[1673268872141,2.84378358,1320.7,1320.6,3.79442522]
[1673268872291,2.83778358,1320.7,1320.6,3.79442522]
[1673268872659,2.83778358,1320.7,1320.6,11.36673522]
[1673268872814,5.10849323,1320.7,1320.6,11.46273522]
[1673268873025,5.11449323,1320.7,1320.6,11.46273522]
[1673268873297,5.11449323,1320.7,1320.6,3.89042522]
[1673268873444,5.11449323,1320.7,1320.6,3.79442522]
[1673268874130,5.11449323,1320.7,1320.6,11.36673522]
[1673268874354,5.11449323,1320.7,1320.6,11.46273522]
[1673268874651,5.11449323,1320.7,1320.6,3.89042522]
[1673268874867,5.11449323,1320.7,1320.6,3.79442522]
[1673268875235,5.11449323,1320.7,1320.6,11.36673522]
[1673268875502,5.11449323,1320.7,1320.6,11.46273522]
[1673268876942,5.11449323,1320.7,1320.6,3.89042522]
[1673268877147,5.11449323,1320.7,1320.6,3.79442522]
[1673268878991,2.84378358,1320.7,1320.6,3.79442522]
[1673268879187,2.83778358,1320.7,1320.6,3.79442522]
[1673268880189,5.10931004,1320.7,1320.6,3.79442522]
[1673268880402,2.27752646,1320.7,1320.6,26.51135522]
[1673268880654,2.27752646,1320.7,1320.6,26.60735522]
[1673268880655,2.27152646,1320.7,1320.6,26.60735522]
[1673268881982,2.27152646,1320.7,1320.6,26.60393698]
[1673268885998,5.17531004,1320.8,1320.6,26.60393698]
[1673268886223,5.11531004,1320.8,1320.7,26.51288064]
[1673268886383,5.11531004,1320.8,1320.7,26.60888064]
[1673268886598,5.11531004,1320.8,1320.7,11.46540064]
[1673268887533,2.84378358,1320.8,1320.7,11.46540064]
[1673268887898,2.83778358,1320.8,1320.7,3.89366064]
[1673268888111,2.83778358,1320.8,1320.7,3.79766064]
[1673268888337,2.83778358,1320.8,1320.7,11.36940064]
[1673268888536,2.83778358,1320.8,1320.7,19.03714064]
[1673268888693,2.83778358,1320.8,1320.7,11.46540064]
[1673268889056,2.83778358,1320.8,1320.7,3.89366064]
[1673268889246,2.83778358,1320.8,1320.7,3.79766064]
[1673268890705,12.77320447,1320.9,1320.7,3.79766064]
[1673268890952,12.71320447,1320.9,1320.8,3.79766064]
[1673268891723,20.28414447,1320.9,1320.8,3.79766064]
[1673268894444,12.71316447,1320.9,1320.8,3.79766064]
[1673268895670,5.14257447,1320.9,1320.8,3.79766064]
[1673268896719,12.71316447,1320.9,1320.8,3.79766064]
[1673268897137,5.14257447,1320.9,1320.8,3.79766064]
[1673268897774,5.14038976,1320.9,1320.8,3.79766064]
[1673268900627,16.87599529,1320.9,1320.7,0.096]
[1673268900839,3.4074319,1320.8,1320.7,3.79766064]
[1673268903596,10.9785919,1320.8,1320.6,0.096]
[1673268903904,2.83941905,1320.7,1320.6,3.79766064]
[1673268904434,10.41115905,1320.7,1320.6,3.79766064]
[1673268904653,10.41715905,1320.7,1320.6,3.79766064]
[1673268905552,2.84541905,1320.7,1320.6,3.79766064]
[1673268905764,2.83941905,1320.7,1320.6,3.79766064]
[1673268906210,12.492,1320.5,1320.0,1.22774005]
[1673268906580,12.492,1320.1,1319.9,0.18448501]
[1673268906768,0.006,1320.1,1320.0,0.08203102]
[1673268907098,5.10376158,1320.1,1320.0,0.08203102]
[1673268907308,5.67826158,1320.1,1320.0,0.08203102]
[1673268907632,17.45586,1320.1,1320.0,0.08203102]
[1673268907841,20.85876946,1320.1,1320.0,0.08203102]
[1673268908147,20.29103302,1320.1,1320.0,0.08203102]
[1673268908361,21.41749627,1320.1,1320.0,0.08203102]
[1673268908515,21.4174889,1320.1,1320.0,0.08203102]
[1673268908724,22.55477806,1320.1,1320.0,0.08203102]
[1673268909203,21.41749988,1320.1,1320.0,0.08203102]
[1673268909517,19.71965215,1320.1,1320.0,0.08203102]
[1673268910228,19.94965215,1320.1,1320.0,0.08203102]
[1673268910601,23.38154949,1320.1,1320.0,0.08203102]
[1673268911191,20.51197,1320.1,1320.0,0.08203102]
[1673268911404,28.08716307,1320.1,1320.0,0.08203102]
[1673268911617,26.95672949,1320.1,1320.0,0.08203102]
[1673268911936,28.08697675,1320.1,1320.0,0.08203102]
[1673268912328,29.22052164,1320.1,1320.0,0.08203102]
[1673268912506,29.21845178,1320.1,1320.0,0.08203102]
[1673268912716,29.24283215,1320.1,1319.9,6.03e-06]
[1673268912928,13.50654215,1320.0,1319.9,6.03e-06]
[1673268913136,29.23254215,1320.0,1319.9,6.03e-06]
[1673268913556,36.06766806,1320.0,1319.9,6.03e-06]
[1673268913871,35.52987591,1320.0,1319.9,6.03e-06]
[1673268914082,38.52987591,1320.0,1319.9,6.03e-06]
[1673268914334,39.63980085,1320.0,1319.9,6.03e-06]
[1673268914742,37.92480085,1320.0,1319.9,6.03e-06]
[1673268915308,28.09474458,1320.0,1319.9,6.03e-06]
[1673268915461,29.2219711,1320.0,1319.9,6.03e-06]
[1673268915654,36.5677211,1320.0,1319.9,6.03e-06]
[1673268916557,34.87697652,1320.0,1319.9,6.03e-06]
[1673268916766,44.3734711,1320.0,1319.8,5.66e-06]
[1673268916955,2.2996,1319.9,1319.8,5.66e-06]
[1673268917331,29.02859,1319.9,1319.7,0.09007196]
[1673268917447,29.03459,1319.9,1319.7,0.09007196]
[1673268917654,21.45826,1319.9,1319.7,0.09007196]
[1673268918501,13.88193,1319.9,1319.7,0.09007196]
[1673268919345,6.3056,1319.9,1319.7,0.09007196]
[1673268919703,9.88206,1319.9,1319.7,0.09007196]
[1673268919916,2.3056,1319.9,1319.7,0.09007196]
[1673268920137,2.2996,1319.9,1319.7,0.09007196]
[1673268920488,9.87601,1319.9,1319.7,0.09007196]
[1673268920716,9.88201,1319.9,1319.7,0.09007196]
[1673268921387,17.45842,1319.9,1319.7,0.09007196]
[1673268921768,9.88201,1319.9,1319.7,0.09007196]
[1673268923807,17.45834,1319.9,1319.7,0.09007196]
[1673268923961,9.88193,1319.9,1319.7,0.09007196]
[1673268924172,17.45826,1319.9,1319.7,0.09007196]
[1673268924380,9.88193,1319.9,1319.7,0.09007196]
[1673268925026,17.45826,1319.9,1319.7,0.09007196]
[1673268925767,9.88193,1319.9,1319.7,0.09007196]
[1673268929955,2.3056,1319.9,1319.7,0.09007196]
[1673268930212,9.87605,1319.9,1319.7,0.09007196]
[1673268930540,9.88205,1319.9,1319.7,0.09007196]
[1673268931738,2.3056,1319.9,1319.7,0.09007196]
[1673268932105,2.2996,1319.9,1319.7,0.09007196]
[1673268932490,2.2996,1319.9,1319.7,22.82193196]
[1673268932702,2.2996,1319.9,1319.7,22.91793196]
[1673268932896,0.20230052,1319.8,1319.7,22.91793196]
[1673268933629,0.20230052,1319.8,1319.7,29.77469137]
[1673268933840,0.20230052,1319.8,1319.7,30.53236185]
[1673268934098,2.2835,1320.1,1319.7,30.53236185]
[1673268934267,0.5685,1320.1,1319.9,22.72899]
[1673268934481,0.5685,1320.1,1319.9,22.82499]
[1673268934948,0.5685,1320.1,1319.9,34.19898064]
[1673268935107,49.0765,1320.2,1319.9,37.8000257]
[1673268935108,49.6449,1320.2,1319.9,37.8000257]
[1673268935470,19.8049,1320.2,1319.9,37.8000257]
[1673268936000,19.8049,1320.2,1319.9,30.2236957]
[1673268936362,27.37953,1320.2,1319.9,15.0710357]
[1673268937008,19.8049,1320.2,1319.9,15.0710357]
[1673268937222,19.8049,1320.2,1319.9,22.6473657]
[1673268938947,19.8049,1320.2,1319.9,7.4947057]
[1673268939312,34.9542,1320.2,1319.9,7.4927057]
[1673268939674,34.9542,1320.2,1319.9,7.4947057]
[1673268940005,36.08142652,1320.2,1319.9,7.4947057]
[1673268940938,28.50672652,1320.2,1319.9,15.0709257]
[1673268941154,43.65592652,1320.2,1319.9,7.4947057]
[1673268941320,45.3466711,1320.2,1319.9,7.4947057]
[1673268941967,37.7720711,1320.2,1319.9,3.89366064]
[1673268942142,37.7720711,1320.2,1319.9,3.79766064]
[1673268942931,5.12722652,1320.1,1319.9,3.79766064]
[1673268943121,5.13322652,1320.1,1319.9,3.79766064]
[1673268944295,1.12722652,1320.0,1319.9,3.79766064]
[1673268945352,2.8179711,1320.0,1319.9,3.79766064]
[1673268946464,3.94505085,1320.0,1319.9,3.79766064]
[1673268947023,2.25430627,1320.0,1319.9,3.79766064]
[1673268947241,3.95394317,1320.0,1319.9,3.79766064]
[1673268947438,2.25430627,1320.0,1319.9,3.79766064]
[1673268947646,3.95394473,1320.0,1319.9,3.79766064]
[1673268949113,11.52969473,1320.0,1319.9,3.79766064]
[1673268949446,11.53569473,1320.0,1319.9,3.79766064]
[1673268950037,3.95994473,1320.0,1319.9,3.79766064]
[1673268950292,3.95394473,1320.0,1319.9,3.79766064]
[1673268952345,1.69963846,1320.0,1319.9,3.79766064]
[1673268954484,3.95394473,1320.0,1319.9,3.79766064]
[1673268958583,3.95394473,1320.0,1319.9,3.79504963]
[1673268959490,3.95446294,1320.0,1319.9,3.79504963]
[1673268960782,9.83005627,1320.0,1319.9,3.79504963]
[1673268961004,9.83605627,1320.0,1319.9,3.79504963]
[1673268961170,2.26030627,1320.0,1319.9,3.79504963]
[1673268961386,2.25430627,1320.0,1319.9,3.79504963]
[1673268963599,3.95472288,1320.0,1319.9,3.79504963]
[1673268967643,2.25430627,1320.0,1319.9,3.79504963]
[1673268967828,3.95521007,1320.0,1319.9,3.79504963]
[1673268968255,2.25430627,1320.0,1319.9,3.79504963]
[1673268970418,5.08943218,1320.0,1319.9,3.79504963]
[1673268970727,5.09543218,1320.0,1319.9,3.79504963]
[1673268971889,2.26030627,1320.0,1319.9,20.67470963]
[1673268972037,3.95634195,1320.0,1319.9,32.29265459]
[1673268972515,2.25430627,1320.0,1319.9,32.29265459]
[1673268972876,5.08943218,1320.0,1319.9,32.29265459]
[1673268973088,5.09543218,1320.0,1319.9,32.29265459]
[1673268973736,2.26030627,1320.0,1319.9,32.29265459]
[1673268973961,2.25430627,1320.0,1319.9,32.29265459]
[1673268974826,5.08943218,1320.0,1319.9,32.29265459]
[1673268975134,2.26030627,1320.0,1319.9,32.29265459]
[1673268975348,2.83872294,1320.0,1319.9,39.66181522]
[1673268975668,1.13554874,1320.0,1319.9,44.213457]
[1673268975833,5.08943218,1320.2,1319.9,44.213457]
[1673268975834,4.01038743,1320.2,1319.9,44.213457]
[1673268976046,3.95638743,1320.2,1320.0,6.79766064]
[1673268976293,3.95638743,1320.2,1320.1,26.52320064]
[1673268976516,1.70208116,1320.2,1320.1,30.83887112]
[1673268976724,1.70208116,1320.2,1320.1,33.83887112]
[1673268978908,3.95638743,1320.2,1320.1,33.83887112]
[1673268979231,1.70208116,1320.2,1320.1,38.52576459]
[1673268979606,4.02238743,1320.3,1320.1,38.52576459]
[1673268979831,1.70208116,1320.2,1320.1,31.26610395]
[1673268980056,1.70208116,1320.2,1320.1,34.71610395]
[1673268981707,4.02238743,1320.3,1320.1,38.51376459]
[1673268981915,2.25430627,1320.3,1320.2,22.40886064]
[1673268982126,2.25430627,1320.3,1320.2,26.3573211]
[1673268982404,3.95413355,1320.3,1320.2,26.3573211]
[1673268983323,3.95413355,1320.3,1320.2,24.6263211]
[1673268984122,3.95413355,1320.3,1320.2,17.0517211]
[1673268984449,3.95413355,1320.3,1320.2,24.6263211]
[1673268985806,3.95413355,1320.3,1320.2,17.0517211]
[1673268986018,3.95413355,1320.3,1320.2,24.6263211]
[1673268986661,3.95413355,1320.3,1320.2,17.0517211]
[1673268986875,3.95413355,1320.3,1320.2,24.6263211]
[1673268987731,3.95413355,1320.3,1320.2,17.0517211]
[1673268988590,1.69982728,1320.3,1320.2,24.6263211]
[1673268988744,1.69982728,1320.3,1320.2,17.0517211]
[1673268988953,3.95413355,1320.3,1320.2,17.0517211]
[1673268989596,1.69982728,1320.3,1320.2,17.0517211]
[1673268989799,3.95413355,1320.3,1320.2,17.0517211]
[1673268990005,3.95413355,1320.3,1320.2,24.6263211]
[1673268991005,3.95413355,1320.3,1320.2,17.0517211]
[1673268992140,3.95413355,1320.3,1320.2,24.6263211]
[1673268993431,3.95413355,1320.3,1320.2,32.2009211]
[1673268994238,1.69982728,1320.3,1320.2,32.2009211]
[1673268996073,1.69982728,1320.3,1320.2,33.9199211]
[1673268996234,2.22282728,1320.3,1320.2,36.9199211]
[1673268996445,0.066,1320.4,1320.2,39.40859158]
[1673268996704,3.96013355,1320.5,1320.4,30.29384]
[1673268996866,1.73782728,1320.5,1320.4,44.6893507]
[1673268997809,0.038,1320.5,1320.4,44.6893507]
[1673268999200,1.78918214,1320.6,1320.4,67.9778107]
[1673268999390,1.78918214,1320.6,1320.5,32.96530064]
[1673268999598,0.08935486,1320.6,1320.5,33.06130064]
[1673268999808,0.08935486,1320.6,1320.5,39.10186171]
[1673269003912,1.78918214,1320.6,1320.5,14.65722171]
[1673269005104,1.78918214,1320.6,1320.5,22.23010171]
[1673269005501,4.04348841,1320.6,1320.5,22.23010171]
[1673269005705,4.04348841,1320.6,1320.5,29.80298171]
[1673269006424,4.04348841,1320.6,1320.5,22.23010171]
[1673269007478,3.99348841,1320.6,1320.5,14.65722171]
[1673269007722,5.12878704,1320.6,1320.5,6.89366064]
[1673269007932,5.13478704,1320.6,1320.5,14.46654064]
[1673269008162,2.29966113,1320.6,1320.5,14.46654064]
[1673269008327,5.12878704,1320.6,1320.5,14.46654064]
[1673269008546,5.13478704,1320.6,1320.5,14.46654064]
[1673269008984,5.13478704,1320.6,1320.5,29.61230064]
[1673269009581,2.88048077,1320.6,1320.5,22.03942064]
[1673269009810,2.87448077,1320.6,1320.5,22.03942064]
[1673269010385,5.1380449,1320.6,1320.5,22.03942064]
[1673269010540,5.1440449,1320.6,1320.5,22.03942064]
[1673269011416,2.88048077,1320.6,1320.5,22.03942064]
[1673269011568,2.87448077,1320.6,1320.5,22.03942064]
[1673269011945,2.86822277,1320.6,1320.5,22.03942064]
[1673269012101,2.86822277,1320.6,1320.5,14.46654064]
[1673269012310,2.86822277,1320.6,1320.5,22.03942064]
[1673269013321,17.88509321,1320.6,1320.1,13.3791]
[1673269013627,1.69826473,1320.3,1320.2,3.79766064]
[1673269014199,1.69826473,1320.3,1320.2,11.37226064]
[1673269014410,1.69826473,1320.3,1320.2,19.03786064]
[1673269014637,1.69826473,1320.3,1320.2,22.03786064]
[1673269015089,1.69826473,1320.3,1320.2,29.61246064]
[1673269015624,3.9626177,1320.3,1320.2,6.88866064]
[1673269015784,3.96327095,1320.3,1320.2,6.88866064]
[1673269015986,2.26435297,1320.3,1320.2,6.88866064]
[1673269016705,5.09479418,1320.3,1320.2,3.88866064]
[1673269016881,12.68482418,1320.3,1320.2,3.79766064]
[1673269017716,5.11079418,1320.3,1320.2,3.79766064]
[1673269019918,5.06079418,1320.3,1320.2,3.79766064]
[1673269021083,5.06079418,1320.3,1320.1,0.091]
[1673269021242,1.69863751,1320.2,1320.1,14.37244064]
[1673269021446,1.69863751,1320.2,1320.1,29.61316064]
[1673269022204,4.54739048,1320.3,1320.1,29.61316064]
[1673269022413,4.48139048,1320.3,1320.2,26.52146064]
[1673269022620,4.48139048,1320.3,1320.2,26.61246064]
[1673269022832,3.91299048,1320.3,1320.2,26.61246064]
[1673269023462,1.76463751,1320.4,1320.2,30.3311847]
[1673269023678,1.69863751,1320.4,1320.3,26.51975064]
[1673269023904,1.69863751,1320.4,1320.3,26.61075064]
[1673269024118,1.69863751,1320.4,1320.3,11.46269064]
[1673269024290,1.69863751,1320.4,1320.3,3.88866064]
[1673269024508,1.69863751,1320.4,1320.3,11.37169064]
[1673269024736,1.69863751,1320.4,1320.3,11.46269064]
[1673269025299,1.69863751,1320.4,1320.3,3.88866064]
[1673269025454,1.69863751,1320.4,1320.3,3.79766064]
[1673269026449,1.69863751,1320.4,1320.3,18.94572064]
[1673269026620,1.69863751,1320.4,1320.3,29.64372611]
[1673269029063,1.69863751,1320.4,1320.3,22.06969611]
[1673269031345,1.69863751,1320.4,1320.3,14.49566611]
[1673269031564,3.96384446,1320.4,1320.3,14.49566611]
[1673269032918,3.96384446,1320.4,1320.3,6.92163611]
[1673269033541,3.96384446,1320.4,1320.3,14.49566611]
[1673269034898,3.96384446,1320.4,1320.3,29.64372611]
[1673269035793,1.69863751,1320.4,1320.3,29.64372611]
[1673269039648,3.96384446,1320.4,1320.3,29.64372611]
[1673269042138,3.96384446,1320.4,1320.3,29.6406717]
[1673269043827,2.26520695,1320.4,1320.3,29.6406717]
[1673269046251,5.09564816,1320.4,1320.3,29.6406717]
[1673269046564,5.11164816,1320.4,1320.3,26.60769623]
[1673269049246,5.11164816,1320.4,1320.3,19.03366623]
[1673269049479,2.84644121,1320.4,1320.3,3.88560623]
[1673269049691,2.83044121,1320.4,1320.3,3.79460623]
[1673269049864,2.83044121,1320.4,1320.3,11.36863623]
[1673269050081,2.83044121,1320.4,1320.3,11.45963623]
[1673269050286,2.83044121,1320.4,1320.3,19.03366623]
[1673269050819,5.09895841,1320.4,1320.3,26.60769623]
[1673269051027,5.11495841,1320.4,1320.3,30.02588085]